bitfinex/quotes_BTCUSD_20220115
["timestamp","ask_amount","ask_price","bid_price","bid_amount"]
[1642221312429,0.00029224,42882.0,42881.0,0.234]
[1642221313067,0.00029224,42882.0,42881.0,0.610779]
[1642221313568,0.00029224,42882.0,42881.0,0.606839]
[1642221314270,0.00029224,42882.0,42881.0,0.616839]
[1642221315573,0.00029224,42882.0,42881.0,0.606839]
[1642221316172,0.00029224,42882.0,42881.0,0.610839]
[1642221317022,0.31388297,42882.0,42881.0,0.610839]
[1642221317724,0.31388297,42882.0,42881.0,0.606839]
[1642221317924,0.31388297,42882.0,42881.0,0.23006]
[1642221318323,0.31388297,42882.0,42881.0,0.23206]
[1642221318726,0.00029224,42882.0,42881.0,0.23206]
[1642221318926,0.00029224,42882.0,42881.0,0.608839]
[1642221319525,0.00029224,42882.0,42881.0,0.606839]
[1642221319726,0.00029224,42882.0,42881.0,0.665131]
[1642221320369,0.00029224,42882.0,42881.0,0.673131]
[1642221321574,0.00029224,42882.0,42881.0,0.665131]
[1642221322376,0.00029224,42882.0,42881.0,0.677131]
[1642221323575,0.00029224,42882.0,42881.0,0.665131]
[1642221323832,0.00029224,42882.0,42881.0,1.00244973]
[1642221324031,0.00029224,42882.0,42881.0,0.665131]
[1642221324231,0.00029224,42882.0,42881.0,1.02366519]
[1642221324634,0.00029224,42882.0,42881.0,1.12366519]
[1642221324833,0.00029224,42882.0,42881.0,1.62366519]
[1642221325632,0.00029224,42882.0,42881.0,1.165131]
[1642221326234,0.00029224,42882.0,42881.0,1.184131]
[1642221327573,0.00029224,42882.0,42881.0,1.165131]
[1642221328373,0.00029224,42882.0,42881.0,1.182131]
[1642221328874,0.00029224,42882.0,42881.0,0.682131]
[1642221329477,0.00029224,42882.0,42881.0,0.665131]
[1642221329673,0.00029224,42882.0,42881.0,0.606839]
[1642221330273,0.25409963,42882.0,42881.0,0.611839]
[1642221330674,0.25409963,42882.0,42881.0,0.23506]
[1642221330874,0.00029224,42882.0,42881.0,0.23506]
[1642221331324,0.00029224,42882.0,42881.0,0.611839]
[1642221331524,0.00029224,42882.0,42881.0,0.606839]
[1642221332322,0.00029224,42882.0,42881.0,0.610839]
[1642221333525,0.00029224,42882.0,42881.0,0.606839]
[1642221334325,0.00029224,42882.0,42881.0,0.611839]
[1642221335569,0.00029224,42882.0,42881.0,0.606839]
[1642221336471,0.6805217,42882.0,42881.0,0.611839]
[1642221336670,0.6805217,42882.0,42881.0,0.23506]
[1642221336971,0.00029224,42882.0,42881.0,0.23506]
[1642221337171,0.00029224,42882.0,42881.0,0.63588442]
[1642221337375,0.00029224,42882.0,42881.0,0.68588442]
[1642221337572,0.00029224,42882.0,42881.0,0.68088442]
[1642221337771,0.59875709,42882.0,42881.0,0.68088442]
[1642221338372,0.59875709,42882.0,42881.0,0.69988442]
[1642221338670,0.59875709,42882.0,42881.0,1.02101312]
[1642221338919,0.00029224,42882.0,42881.0,1.02101312]
[1642221339120,0.00029224,42882.0,42881.0,1.39779212]
[1642221339519,0.00029224,42882.0,42881.0,1.37879212]
[1642221340326,0.00029224,42882.0,42881.0,1.41279212]
[1642221341624,0.00029224,42882.0,42881.0,1.37879212]
[1642221342428,0.00029224,42882.0,42881.0,1.41179212]
[1642221343672,0.00029224,42882.0,42881.0,1.37879212]
[1642221344272,0.00029224,42882.0,42881.0,1.41179212]
[1642221345475,0.00029224,42882.0,42881.0,1.37879212]
[1642221345677,0.00029224,42882.0,42881.0,1.87879212]
[1642221346319,0.00029224,42882.0,42881.0,1.92879212]
[1642221346519,0.00029224,42882.0,42881.0,1.57918774]
[1642221346719,0.00029224,42882.0,42881.0,1.25805904]
[1642221347519,0.54444885,42891.0,42882.0,0.312718]
[1642221347724,0.54444885,42891.0,42886.0,0.058285]
[1642221347919,0.00013752,42890.0,42886.0,0.058285]
[1642221348320,0.00012033,42889.0,42886.0,0.058285]
[1642221348720,0.00010314,42888.0,42886.0,0.058285]
[1642221349124,8.595e-05,42887.0,42886.0,0.058285]
[1642221350476,8.595e-05,42887.0,42884.0,0.058286]
[1642221350974,6.876e-05,42886.0,42884.0,0.058286]
[1642221351375,0.00622953,42892.0,42884.0,0.058286]
[1642221351573,0.00622953,42892.0,42884.0,0.32025742]
[1642221351774,0.00015471,42891.0,42884.0,0.32025742]
[1642221353175,0.00015471,42891.0,42884.0,0.058286]
[1642221353928,0.00015471,42891.0,42888.0,0.058277]
[1642221354530,0.00015471,42891.0,42890.0,0.29726558]
[1642221354729,0.00015471,42891.0,42890.0,0.34726558]
[1642221354930,0.00015471,42891.0,42890.0,0.39726558]
[1642221355530,0.00015471,42891.0,42890.0,0.75868811]
[1642221356130,0.00015471,42891.0,42890.0,1.25868811]
[1642221356330,0.00015471,42891.0,42890.0,1.27368811]
[1642221357331,0.00015471,42891.0,42890.0,0.97642253]
[1642221357574,0.00015471,42891.0,42890.0,0.96142253]
[1642221358375,0.00015471,42891.0,42890.0,1.68778653]
[1642221359577,0.00015471,42891.0,42890.0,1.66778653]
[1642221359778,0.00015471,42891.0,42890.0,1.66784653]
[1642221359977,0.00015471,42891.0,42890.0,1.66790653]
[1642221360377,0.00015471,42891.0,42890.0,0.997899]
[1642221360581,0.00015471,42891.0,42890.0,0.897899]
[1642221360980,0.00015471,42891.0,42890.0,1.127899]
[1642221361716,0.00015471,42891.0,42890.0,1.106899]
[1642221362516,0.00015471,42891.0,42890.0,1.123899]
[1642221363717,0.00015471,42891.0,42890.0,1.106899]
[1642221364118,0.00015471,42891.0,42890.0,0.606899]
[1642221364417,0.00015471,42891.0,42890.0,0.622899]
[1642221365674,0.59778566,42899.0,42891.0,1.2]
[1642221365877,0.55390239,42899.0,42895.0,0.058272]
[1642221366072,0.55390239,42899.0,42898.0,0.00129023]
[1642221366472,0.00013752,42899.0,42898.0,0.00129023]
[1642221366671,0.00013752,42899.0,42898.0,0.37806923]
[1642221366871,0.00013752,42899.0,42898.0,0.42806923]
[1642221367072,0.00013752,42899.0,42898.0,0.57806923]
[1642221367271,0.00013752,42899.0,42898.0,0.63632823]
[1642221367472,0.00013752,42899.0,42898.0,1.00747731]
[1642221367675,0.00013752,42899.0,42898.0,0.63632823]
[1642221367873,0.00013752,42899.0,42898.0,1.03632823]
[1642221368072,0.00013752,42899.0,42898.0,1.45775652]
[1642221368471,0.00013752,42899.0,42898.0,1.49075652]
[1642221369123,0.00054289,42911.0,42898.0,1.49075652]
[1642221369324,0.00054289,42911.0,42904.0,0.116496]
[1642221369527,0.0001719,42909.0,42905.0,0.05824882]
[1642221369725,0.0001719,42909.0,42905.0,0.39813492]
[1642221370024,0.00015471,42908.0,42905.0,0.39813492]
[1642221370227,0.00015471,42908.0,42905.0,0.69587881]
[1642221370426,0.00013752,42907.0,42906.0,0.116498]
[1642221370627,0.00013752,42907.0,42906.0,0.4575209]
[1642221370830,0.29430811,42910.0,42906.0,0.116498]
[1642221371826,0.29430811,42910.0,42904.0,0.02]
[1642221372029,0.34194912,42909.0,42904.0,0.02]
[1642221372228,0.376779,42908.0,42904.0,0.02]
[1642221372426,0.476779,42908.0,42902.0,0.51]
[1642221372669,2.9148173,42908.0,42902.0,0.51]
[1642221372875,0.05827,42907.0,42903.0,6.876e-05]
[1642221373070,0.376779,42906.0,42903.0,6.876e-05]
[1642221373272,0.00054289,42911.0,42903.0,6.876e-05]
[1642221373478,0.376779,42910.0,42903.0,6.876e-05]
[1642221373672,0.69797226,42911.0,42903.0,6.876e-05]
[1642221373971,0.69797226,42911.0,42903.0,0.058261]
[1642221374170,1.00850316,42911.0,42903.0,0.058261]
[1642221374371,0.31107379,42911.0,42903.0,0.058261]
[1642221374571,0.35707379,42911.0,42902.0,0.00012]
[1642221374872,0.35707379,42911.0,42902.0,0.00018]
[1642221375072,0.35707379,42911.0,42902.0,0.00024]
[1642221375772,0.058264,42910.0,42902.0,0.00024]
[1642221376723,0.05826654,42909.0,42902.0,0.00024]
[1642221376923,0.058269,42907.0,42902.0,0.00024]
[1642221377930,0.42761079,42911.0,42902.0,0.00024]
[1642221378526,0.058264,42910.0,42902.0,0.00024]
[1642221378928,0.05826644,42909.0,42902.0,0.00024]
[1642221379828,0.00054289,42911.0,42902.0,0.00024]
[1642221380071,0.00054289,42911.0,42902.0,0.37045621]
[1642221380574,0.00054289,42911.0,42903.0,0.058261]
[1642221381571,0.00054289,42911.0,42903.0,0.23]
[1642221381771,0.27795997,42912.0,42903.0,0.23]
[1642221382176,0.05826526,42910.0,42903.0,0.23]
[1642221382574,6.876e-05,42911.0,42904.0,0.10826]
[1642221382873,0.26532873,42912.0,42903.0,0.23]
[1642221383073,0.26532873,42912.0,42905.0,0.00010314]
[1642221383373,0.26532873,42912.0,42904.0,0.00012033]
[1642221383572,0.26532873,42912.0,42906.0,0.058257]
[1642221384026,0.26532873,42912.0,42907.0,6.876e-05]
[1642221385025,0.36186683,42914.0,42907.0,6.876e-05]
[1642221385227,0.36186683,42914.0,42908.0,0.058254]
[1642221385826,0.34486683,42914.0,42908.0,0.058254]
[1642221386028,0.4154,42915.0,42908.0,0.058254]
[1642221386629,0.34809523,42914.0,42908.0,0.058254]
[1642221387027,0.29901375,42913.0,42905.0,0.116504]
[1642221387426,0.29901375,42913.0,42908.0,0.058255]
[1642221387878,0.34809523,42914.0,42908.0,0.058255]
[1642221388682,0.34309523,42914.0,42906.0,8.595e-05]
[1642221388880,0.34128448,42910.0,42906.0,8.595e-05]
[1642221390386,0.32196699,42909.0,42906.0,8.595e-05]
[1642221390585,0.32196699,42909.0,42904.0,0.00012033]
[1642221391723,0.38023456,42909.0,42904.0,0.00012033]
[1642221392325,0.38023399,42909.0,42904.0,0.00012033]
[1642221393927,0.376779,42908.0,42904.0,0.00012033]
[1642221394131,0.72872922,42909.0,42904.0,0.00012033]
[1642221394326,0.7370558,42909.0,42904.0,0.00012033]
[1642221394532,0.376779,42908.0,42904.0,0.00024033]
[1642221394727,0.55550138,42909.0,42904.0,0.00024033]
[1642221394932,0.55550138,42909.0,42905.0,0.00010314]
[1642221395773,0.376779,42908.0,42905.0,0.00010314]
[1642221396572,0.476779,42908.0,42905.0,0.00010314]
[1642221396775,0.116544,42907.0,42905.0,0.00010314]
[1642221396972,0.376779,42906.0,42905.0,0.00010314]
[1642221397176,0.11654299,42907.0,42905.0,0.00010314]
[1642221397373,0.058271,42907.0,42905.0,0.00010314]
[1642221399125,0.11654066,42907.0,42905.0,0.00010314]
[1642221400727,0.058271,42907.0,42905.0,0.00010314]
[1642221400928,0.376779,42906.0,42904.0,0.00012033]
[1642221401129,0.593329,42906.0,42904.0,0.00012033]
[1642221402129,0.651609,42906.0,42904.0,0.00012033]
[1642221402672,0.681609,42906.0,42904.0,0.00012033]
[1642221403075,1.915609,42906.0,42904.0,0.00012033]
[1642221403273,2.09694234,42905.0,42904.0,0.00012033]
[1642221403474,0.376779,42904.0,42892.0,0.00125119]
[1642221403674,0.376779,42904.0,42888.0,0.9102]
[1642221403675,0.05828708,42896.0,42888.0,0.9102]
[1642221403873,0.05828708,42896.0,42893.0,0.00018909]
[1642221404276,0.24168117,42895.0,42893.0,0.00018909]
[1642221404477,0.24168117,42895.0,42881.0,0.28171435]
[1642221404478,0.6319872,42894.0,42886.0,0.00030942]
[1642221404677,0.05829403,42891.0,42886.0,0.00030942]
[1642221404874,0.05829403,42891.0,42882.0,0.00037818]
[1642221405177,0.05829403,42891.0,42880.0,0.00041256]
[1642221405574,0.3552082,42894.0,42880.0,0.00041256]
[1642221406173,0.058289,42892.0,42880.0,0.00041256]
[1642221406431,0.28305868,42887.0,42880.0,0.00041256]
[1642221406733,1.78073184,42886.0,42880.0,0.00041256]
[1642221406933,0.28305868,42887.0,42880.0,0.00041256]
[1642221407130,0.17488076,42892.0,42880.0,0.00041256]
[1642221407531,0.058292,42890.0,42880.0,0.00041256]
[1642221407733,0.058292,42890.0,42880.0,0.32018504]
[1642221407931,0.058292,42890.0,42880.0,0.37018504]
[1642221408130,0.058292,42890.0,42881.0,0.00039537]
[1642221408533,0.058292,42890.0,42881.0,0.05868637]
[1642221408934,0.058292,42890.0,42882.0,0.00037818]
[1642221412183,0.058292,42890.0,42882.0,0.23037818]
[1642221412384,0.058292,42890.0,42882.0,0.33037818]
[1642221412584,0.058292,42890.0,42883.0,0.00036099]
[1642221414227,0.058292,42890.0,42882.0,0.32536099]
[1642221414428,0.00010314,42889.0,42882.0,0.32536099]
[1642221414830,8.595e-05,42888.0,42883.0,6e-05]
[1642221415230,6.876e-05,42887.0,42883.0,6e-05]
[1642221415430,6.876e-05,42887.0,42883.0,0.00012]
[1642221416032,6.876e-05,42887.0,42882.0,0.32048099]
[1642221417131,6.876e-05,42887.0,42883.0,6e-05]
[1642221417331,0.313054,42884.0,42883.0,6e-05]
[1642221419172,0.05836376,42887.0,42883.0,6e-05]
[1642221419371,6.876e-05,42887.0,42883.0,6e-05]
[1642221420676,6.876e-05,42887.0,42883.0,0.058348]
[1642221434888,6.876e-05,42887.0,42884.0,0.376779]
[1642221435887,6.876e-05,42887.0,42883.0,6e-05]
[1642221439633,0.05836576,42887.0,42883.0,6e-05]
[1642221440683,0.11666335,42887.0,42883.0,6e-05]
[1642221441484,0.05836576,42887.0,42883.0,6e-05]
[1642221441683,0.33264875,42886.0,42883.0,6e-05]
[1642221441884,0.493384,42885.0,42883.0,6e-05]
[1642221442083,0.593384,42885.0,42883.0,6e-05]
[1642221442683,0.605384,42885.0,42883.0,6e-05]
[1642221442884,0.228605,42885.0,42883.0,6e-05]
[1642221443284,0.128605,42885.0,42883.0,6e-05]
[1642221444031,0.116605,42885.0,42883.0,6e-05]
[1642221444529,0.05830043,42886.0,42883.0,6e-05]
[1642221444728,0.19836576,42887.0,42883.0,6e-05]
[1642221445330,0.09836576,42887.0,42883.0,6e-05]
[1642221445931,0.05836576,42887.0,42883.0,6e-05]
[1642221446130,6.876e-05,42887.0,42883.0,6e-05]
[1642221448280,0.05836376,42887.0,42883.0,6e-05]
[1642221448679,0.05836376,42887.0,42882.0,0.22506]
[1642221449380,0.05829922,42886.0,42882.0,0.22506]
[1642221449579,0.0583,42885.0,42882.0,0.22506]
[1642221450782,6.876e-05,42887.0,42882.0,0.22506]
[1642221452836,6.876e-05,42887.0,42883.0,0.33101321]
[1642221453035,6.876e-05,42887.0,42883.0,0.33266344]
[1642221453234,6.876e-05,42887.0,42882.0,0.22506]
[1642221453434,6.876e-05,42887.0,42883.0,0.33195387]
[1642221453634,6.876e-05,42887.0,42883.0,0.39024287]
[1642221454239,6.876e-05,42887.0,42886.0,0.28017866]
[1642221454436,6.876e-05,42887.0,42883.0,0.058289]
[1642221454636,6.876e-05,42887.0,42882.0,0.22506]
[1642221455580,6.876e-05,42887.0,42882.0,0.51419762]
[1642221457883,6.876e-05,42887.0,42883.0,0.058289]
[1642221459830,6.876e-05,42887.0,42882.0,0.22506]
[1642221461632,0.05836376,42887.0,42882.0,0.22506]
[1642221464198,0.36848767,42887.0,42882.0,0.22506]
[1642221464398,0.05830113,42885.0,42882.0,0.22506]
[1642221464598,0.058301,42884.0,42882.0,0.22506]
[1642221467035,0.37454773,42887.0,42882.0,0.22506]
[1642221467439,0.47454773,42887.0,42882.0,0.22506]
[1642221468837,0.49354773,42887.0,42882.0,0.22506]
[1642221470087,0.41625073,42887.0,42882.0,0.22506]
[1642221470278,0.10612682,42887.0,42882.0,0.22006]
[1642221470678,0.00612682,42887.0,42882.0,0.22006]
[1642221471281,0.06442282,42887.0,42882.0,0.22006]
[1642221472382,0.12272045,42887.0,42882.0,0.22006]
[1642221473184,0.06442282,42887.0,42882.0,0.22006]
[1642221473384,0.00612682,42887.0,42882.0,0.22006]
[1642221475658,0.06442382,42887.0,42882.0,0.22006]
[1642221476960,0.00612682,42887.0,42882.0,0.27835]
[1642221479892,0.00612682,42887.0,42882.0,0.22006]
[1642221480793,0.06442382,42887.0,42882.0,0.22006]
[1642221484635,0.1227216,42887.0,42882.0,0.22006]
[1642221485683,0.06442382,42887.0,42882.0,0.22006]
[1642221486183,0.00612682,42887.0,42882.0,0.22006]
[1642221487287,0.06442282,42887.0,42882.0,0.22006]
[1642221487685,0.376779,42886.0,42882.0,0.22006]
[1642221488086,1.234,42885.0,42882.0,0.22006]
[1642221488387,0.49341226,42884.0,42882.0,0.22006]
[1642221488587,0.59341226,42884.0,42882.0,0.22006]
[1642221489556,1.19102145,42884.0,42882.0,0.22006]
[1642221489958,0.41127052,42883.0,42882.0,0.22006]
[1642221490163,0.88804952,42883.0,42882.0,0.22006]
[1642221490560,0.500119,42883.0,42882.0,0.22006]
[1642221490964,1.11972819,42883.0,42882.0,0.22006]
[1642221492162,0.500119,42883.0,42882.0,0.22006]
[1642221492982,0.522119,42883.0,42882.0,0.22006]
[1642221494082,0.500119,42883.0,42882.0,0.22006]
[1642221494883,0.522119,42883.0,42882.0,0.22006]
[1642221496186,0.500119,42883.0,42882.0,0.22006]
[1642221496830,0.521119,42883.0,42882.0,0.22006]
[1642221498330,1.734119,42883.0,42882.0,0.22006]
[1642221498531,0.500119,42883.0,42882.0,0.22006]
[1642221498931,0.521119,42883.0,42882.0,0.22006]
[1642221500191,0.12334,42883.0,42882.0,0.22006]
[1642221500688,0.02334,42883.0,42882.0,0.22006]
[1642221502692,0.400119,42883.0,42882.0,0.22006]
[1642221503191,0.500119,42883.0,42882.0,0.22006]
[1642221504936,0.529119,42883.0,42882.0,0.22006]
[1642221505537,0.524119,42883.0,42882.0,0.22006]
[1642221506138,0.495119,42883.0,42882.0,0.22006]
[1642221506937,0.525119,42883.0,42882.0,0.22006]
[1642221508183,0.495119,42883.0,42882.0,0.22006]
[1642221508992,0.516119,42883.0,42882.0,0.22006]
[1642221510286,0.495119,42883.0,42882.0,0.22006]
[1642221511086,0.525119,42883.0,42882.0,0.22006]
[1642221512158,0.495119,42883.0,42882.0,0.22006]
[1642221513060,0.525119,42883.0,42882.0,0.22006]
[1642221514064,0.86688235,42883.0,42882.0,0.22006]
[1642221514260,0.83688235,42883.0,42882.0,0.22006]
[1642221514463,0.495119,42883.0,42882.0,0.22006]
[1642221514662,0.395119,42883.0,42882.0,0.22006]
[1642221514862,0.01834,42883.0,42882.0,0.22006]
[1642221515086,0.427119,42883.0,42882.0,0.22006]
[1642221516289,0.395119,42883.0,42882.0,0.22006]
[1642221517690,0.390119,42883.0,42882.0,0.22006]
[1642221522033,0.490119,42883.0,42882.0,0.22006]
[1642221523104,0.507119,42883.0,42882.0,0.22006]
[1642221524906,0.56390415,42883.0,42882.0,0.22006]
[1642221525109,0.57990415,42883.0,42882.0,0.22006]
[1642221526008,1.17751334,42883.0,42882.0,0.22006]
[1642221526206,1.16151334,42883.0,42882.0,0.22006]
[1642221527039,0.58790415,42883.0,42882.0,0.22006]
[1642221527238,0.514119,42883.0,42882.0,0.22006]
[1642221528337,0.490119,42883.0,42882.0,0.22006]
[1642221529137,0.514119,42883.0,42882.0,0.22006]
[1642221529337,0.5903707,42883.0,42882.0,0.22006]
[1642221529542,1.748119,42883.0,42882.0,0.22006]
[1642221530386,1.77340453,42883.0,42882.0,0.22006]
[1642221531087,1.77240453,42883.0,42882.0,0.22006]
[1642221531790,0.53840453,42883.0,42882.0,0.22006]
[1642221532386,0.51540453,42883.0,42882.0,0.22006]
[1642221532990,0.53740453,42883.0,42882.0,0.22006]
[1642221534270,0.41540453,42883.0,42882.0,0.22006]
[1642221534674,1.01390041,42883.0,42882.0,0.22006]
[1642221535075,1.03590041,42883.0,42882.0,0.22006]
[1642221535274,0.43740453,42883.0,42882.0,0.22006]
[1642221536077,0.53740453,42883.0,42882.0,0.22006]
[1642221536276,0.51540453,42883.0,42882.0,0.22006]
[1642221537177,0.53740453,42883.0,42882.0,0.22006]
[1642221538190,0.51540453,42883.0,42882.0,0.22006]
[1642221538991,0.53640453,42883.0,42882.0,0.22006]
[1642221540289,0.490119,42883.0,42882.0,0.22006]
[1642221541091,0.515119,42883.0,42882.0,0.22006]
[1642221542353,0.490119,42883.0,42882.0,0.22006]
[1642221543052,0.513119,42883.0,42882.0,0.22006]
[1642221544253,0.490119,42883.0,42882.0,0.22006]
[1642221545095,0.490119,42883.0,42871.0,0.2834]
[1642221545096,0.05831602,42878.0,42871.0,0.2834]
[1642221545296,0.058319,42876.0,42869.0,0.56201574]
[1642221545600,0.058319,42876.0,42872.0,0.00018909]
[1642221546197,0.27421393,42874.0,42869.0,0.00024066]
[1642221546599,0.29292424,42872.0,42869.0,0.00024066]
[1642221547196,0.29292424,42872.0,42869.0,0.23024066]
[1642221547497,0.29292424,42872.0,42870.0,0.00022347]
[1642221548604,0.376779,42871.0,42870.0,0.00022347]
[1642221548838,0.438959,42871.0,42870.0,0.00022347]
[1642221549036,0.552299,42871.0,42870.0,0.00022347]
[1642221550336,1.786299,42871.0,42870.0,0.00022347]
[1642221550938,1.686299,42871.0,42870.0,0.00022347]
[1642221551140,1.705299,42871.0,42870.0,0.00022347]
[1642221551740,0.471299,42871.0,42870.0,0.00022347]
[1642221551941,0.409119,42871.0,42860.0,0.3051]
[1642221552143,0.058326,42866.0,42857.0,0.00230978]
[1642221552345,0.00129253,42859.0,42853.0,0.0011]
[1642221552597,0.08537253,42859.0,42858.0,6.876e-05]
[1642221552797,0.08537253,42859.0,42853.0,0.0011]
[1642221552798,0.75,42858.0,42853.0,0.0011]
[1642221552999,0.27072025,42856.0,42853.0,0.0011]
[1642221553197,0.376779,42855.0,42854.0,6.876e-05]
[1642221553401,0.376779,42855.0,42854.0,8.76e-06]
[1642221553402,0.37798223,42855.0,42854.0,8.76e-06]
[1642221553601,0.84828165,42855.0,42854.0,8.76e-06]
[1642221553798,0.47798223,42855.0,42854.0,8.76e-06]
[1642221553999,1.71198223,42855.0,42854.0,8.76e-06]
[1642221554602,0.47798223,42855.0,42854.0,8.76e-06]
[1642221554802,0.82625619,42855.0,42854.0,8.76e-06]
[1642221555103,2.08425619,42855.0,42854.0,8.76e-06]
[1642221555601,2.08425619,42855.0,42830.0,0.06769018]
[1642221555802,1.84837825,42855.0,42831.0,0.116704]
[1642221556004,1.84837825,42855.0,42842.0,0.00020628]
[1642221556005,0.01334,42854.0,42842.0,0.00020628]
[1642221556638,0.01334,42854.0,42846.0,0.33337725]
[1642221556838,0.376779,42853.0,42846.0,0.33337725]
[1642221557038,0.476779,42853.0,42847.0,0.00012033]
[1642221557239,1.17339167,42853.0,42847.0,0.00012033]
[1642221557439,1.07339167,42853.0,42847.0,0.00012033]
[1642221557640,1.23173667,42853.0,42847.0,0.00012033]
[1642221558642,0.535124,42853.0,42847.0,0.00012033]
[1642221559040,0.01334,42852.0,42847.0,0.00012033]
[1642221559238,0.376779,42851.0,42847.0,0.00012033]
[1642221559641,0.476779,42851.0,42847.0,0.00012033]
[1642221560091,0.1,42851.0,42847.0,0.00012033]
[1642221560687,0.26387631,42849.0,42840.0,0.00120157]
[1642221561090,0.26387631,42849.0,42841.0,0.00010314]
[1642221561290,0.32222731,42849.0,42841.0,0.00010314]
[1642221561490,0.26387631,42849.0,42841.0,0.00010314]
[1642221561687,0.26387631,42849.0,42841.0,0.28576049]
[1642221561889,0.32778714,42843.0,42841.0,0.00010314]
[1642221562089,0.39987714,42843.0,42829.0,0.27578595]
[1642221562289,0.39987714,42843.0,42830.0,0.37801908]
[1642221562489,0.74705886,42843.0,42830.0,0.43658536]
[1642221562688,0.49987714,42843.0,42830.0,0.43658536]
[1642221562891,0.34453703,42841.0,42835.0,0.31397796]
[1642221563292,0.34453703,42841.0,42836.0,0.00010314]
[1642221563845,0.058361,42842.0,42836.0,0.00010314]
[1642221564743,0.29993359,42841.0,42836.0,0.00010314]
[1642221565043,0.058363,42840.0,42831.0,0.00018909]
[1642221565245,0.34729177,42839.0,42831.0,0.00018909]
[1642221565443,0.01334,42840.0,42831.0,0.00018909]
[1642221565643,2.11640485,42835.0,42831.0,0.00018909]
[1642221565845,0.31366934,42833.0,42827.0,0.00025785]
[1642221566144,0.058375,42831.0,42827.0,0.00025785]
[1642221566645,0.30560078,42830.0,42827.0,0.00025785]
[1642221568003,0.00123683,42828.0,42811.0,0.126101]
[1642221568201,0.00123683,42828.0,42817.0,0.06748864]
[1642221568202,0.435161,42827.0,42817.0,0.06748864]
[1642221568402,0.376779,42827.0,42812.0,0.00025785]
[1642221568603,0.46888234,42827.0,42812.0,0.00025785]
[1642221568801,0.24215511,42821.0,42816.0,0.33569215]
[1642221569103,0.07172666,42826.0,42817.0,0.0001719]
[1642221569302,0.01334,42826.0,42817.0,0.0001719]
[1642221569702,0.38222234,42826.0,42817.0,0.0001719]
[1642221569901,0.24536275,42824.0,42817.0,0.0001719]
[1642221570303,0.058384,42824.0,42817.0,0.0001719]
[1642221570505,0.01334,42826.0,42817.0,0.36905424]
[1642221570903,0.01334,42826.0,42818.0,0.00015471]
[1642221571335,0.06087683,42829.0,42825.0,0.30902627]
[1642221571639,0.01644655,42830.0,42825.0,0.30902627]
[1642221573043,0.435157,42829.0,42825.0,0.30902627]
[1642221573242,0.01644655,42830.0,42825.0,0.30902627]
[1642221573442,0.1,42829.0,42825.0,0.30902627]
[1642221573645,0.01644655,42830.0,42825.0,0.30902627]
[1642221573942,0.376779,42829.0,42825.0,0.30902627]
[1642221574145,0.1,42829.0,42825.0,0.30902627]
[1642221574543,0.01644655,42830.0,42826.0,0.32526873]
[1642221574743,0.01644655,42830.0,42825.0,0.30902627]
[1642221575991,2.12440485,42835.0,42829.0,0.40447573]
[1642221576189,0.008,42835.0,42830.0,0.35857307]
[1642221576389,0.00672871,42835.0,42830.0,0.35857307]
[1642221576588,0.33165894,42837.0,42833.0,0.25897585]
[1642221576793,0.32615851,42842.0,42834.0,0.33642676]
[1642221576992,0.00010314,42840.0,42834.0,0.33642676]
[1642221577390,8.595e-05,42839.0,42835.0,0.05834937]
[1642221577791,6.876e-05,42838.0,42835.0,0.05834937]
[1642221578190,0.00013752,42842.0,42835.0,0.05834937]
[1642221578392,0.00013752,42842.0,42838.0,0.058347]
[1642221578594,0.00012033,42841.0,42839.0,0.35641449]
[1642221578841,0.00012033,42841.0,42838.0,0.39600758]
[1642221579040,0.00015471,42843.0,42831.0,0.3052]
[1642221579244,0.00015471,42843.0,42822.0,0.87476153]
[1642221579245,0.00120788,42834.0,42822.0,0.87476153]
[1642221579445,0.11668788,42834.0,42823.0,0.376779]
[1642221579647,0.11668788,42834.0,42823.0,0.37696809]
[1642221579841,0.11668788,42834.0,42824.0,0.0001719]
[1642221580041,0.26713877,42832.0,42824.0,0.0001719]
[1642221580442,0.26713877,42832.0,42823.0,0.00018909]
[1642221580643,0.058378,42829.0,42821.0,0.00022347]
[1642221580845,0.376779,42828.0,42821.0,0.00022347]
[1642221581046,0.05962876,42829.0,42821.0,0.00022347]
[1642221581245,0.69661267,42827.0,42820.0,0.091]
[1642221581446,0.59162323,42825.0,42820.0,0.091]
[1642221581645,0.65259323,42825.0,42821.0,0.00022347]
[1642221581848,0.00126936,42823.0,42821.0,0.00022347]
[1642221582049,0.376779,42822.0,42821.0,0.00022347]
[1642221582246,0.71280578,42822.0,42821.0,0.00022347]
[1642221582446,0.33602678,42822.0,42821.0,0.00022347]
[1642221582685,0.03528936,42823.0,42821.0,0.00022347]
[1642221582885,0.03528936,42823.0,42818.0,0.27198436]
[1642221583287,0.59162323,42822.0,42819.0,0.00025785]
[1642221584087,0.65127659,42823.0,42819.0,0.00025785]
[1642221584487,0.59289259,42823.0,42812.0,0.00037818]
[1642221584691,0.59162323,42823.0,42815.0,0.058375]
[1642221584987,0.59162323,42823.0,42816.0,0.00030942]
[1642221585490,0.59162323,42825.0,42820.0,0.32747771]
[1642221585891,0.59162323,42825.0,42821.0,0.00022347]
[1642221586342,0.69661267,42827.0,42821.0,0.00022347]
[1642221586343,0.59162323,42824.0,42821.0,0.00022347]
[1642221586842,0.59162323,42824.0,42821.0,0.05859147]
[1642221587044,0.59162323,42828.0,42822.0,0.45867981]
[1642221587245,0.59162323,42828.0,42824.0,0.00128669]
[1642221587642,0.59162323,42828.0,42825.0,0.00015471]
[1642221588241,0.59162323,42832.0,42829.0,0.26348045]
[1642221588442,0.59162323,42832.0,42829.0,0.32183845]
[1642221588645,0.59162323,42832.0,42830.0,6.876e-05]
[1642221589147,1.2882359,42834.0,42825.0,0.00015471]
[1642221589444,0.067,42832.0,42825.0,0.00015471]
[1642221589947,0.65862323,42832.0,42827.0,0.34477702]
[1642221590391,0.65862323,42832.0,42828.0,0.00010314]
[1642221590591,0.59162323,42832.0,42828.0,0.00010314]
[1642221590793,0.59162323,42831.0,42828.0,0.00010314]
[1642221591393,0.59262323,42831.0,42828.0,0.00010314]
[1642221591796,0.59262323,42831.0,42825.0,0.00015471]
[1642221592393,0.59262323,42831.0,42825.0,0.26249152]
[1642221592597,0.59162323,42831.0,42825.0,0.26249152]
[1642221592793,0.59162323,42831.0,42826.0,0.00013752]
[1642221593395,0.60962323,42831.0,42826.0,0.00013752]
[1642221594542,0.59162323,42831.0,42826.0,0.00013752]
[1642221595838,0.59162323,42832.0,42826.0,0.00013752]
[1642221596339,0.59162323,42832.0,42825.0,0.00015471]
[1642221596539,0.59162323,42835.0,42825.0,0.00015471]